bitfinex-derivatives/quotes_BTCF0:USTF0_20241110
["timestamp","ask_amount","ask_price","bid_price","bid_amount"]
[1731252599311,0.062721,79650.0,79649.0,0.02511017]
[1731252600211,0.01825122,79651.0,79649.0,0.02511017]
[1731252600411,0.12396,79664.0,79655.0,0.062717]
[1731252600713,0.062719,79653.0,79650.0,0.423521]
[1731252600904,0.20862466,79664.0,79649.0,0.02511017]
[1731252600905,0.062721,79650.0,79649.0,0.02511017]
[1731252603014,0.423521,79650.0,79649.0,0.02511017]
[1731252604710,0.062721,79650.0,79649.0,0.02511017]
[1731252604910,0.09216674,79650.0,79649.0,0.08783217]
[1731252605821,0.489178,79650.0,79649.0,0.07205451]
[1731252606714,0.489178,79650.0,79649.0,0.49557651]
[1731252608822,0.39701126,79650.0,79649.0,0.49557651]
[1731252610313,0.08738501,79650.0,79649.0,0.49557651]
[1731252610514,0.00188329,79668.0,79667.0,0.062707]
[1731252610712,0.062711,79663.0,79662.0,0.062711]
[1731252611023,0.08654795,79668.0,79651.0,0.0314]
[1731252611024,0.062708,79666.0,79664.0,0.06271]
[1731252611224,0.062709,79665.0,79664.0,0.06271]
[1731252611425,0.01952488,79668.0,79660.0,0.096013]
[1731252611426,0.062712,79661.0,79660.0,0.096013]
[1731252612311,0.062712,79661.0,79660.0,0.0333]
[1731252613321,0.062721,79650.0,79649.0,0.00072]
[1731252613626,0.062721,79650.0,79643.0,0.3608]
[1731252613627,0.062722,79648.0,79643.0,0.3608]
[1731252614417,0.062722,79648.0,79645.0,0.062724]
[1731252617615,0.124,79659.0,79643.0,0.3608]
[1731252617828,0.124,79659.0,79658.0,0.062714]
[1731252618023,0.3775429,79661.0,79657.0,0.08466466]
[1731252618328,0.0157429,79661.0,79660.0,0.062713]
[1731252618529,0.06459029,79668.0,79664.0,0.06271]
[1731252618726,0.06459029,79668.0,79658.0,0.062714]
[1731252618928,0.06459029,79668.0,79657.0,0.08466466]
[1731252619118,0.0797466,79668.0,79657.0,0.08466466]
[1731252619724,0.062708,79666.0,79663.0,0.06271]
[1731252620323,0.10170426,79668.0,79655.0,0.0654]
[1731252620625,0.3608,79666.0,79655.0,0.0654]
[1731252620821,0.062675,79658.0,79655.0,0.0654]
[1731252621324,0.3608,79666.0,79655.0,0.128117]
[1731252621623,0.062711,79663.0,79655.0,0.128117]
[1731252621820,0.062711,79663.0,79659.0,0.062713]
[1731252622128,0.062711,79663.0,79655.0,0.0654]
[1731252622325,0.062711,79663.0,79661.0,0.062712]
[1731252623033,0.3608,79666.0,79655.0,0.128116]
[1731252623235,0.06271,79664.0,79657.0,0.062715]
[1731252623431,0.06271,79664.0,79655.0,0.0654]
[1731252623631,0.062708,79667.0,79660.0,0.062713]
[1731252624331,0.062708,79667.0,79661.0,0.062712]
[1731252624833,0.0170396,79668.0,79658.0,0.3608]
[1731252625033,0.0170396,79668.0,79667.0,0.062707]
[1731252625336,0.00188329,79668.0,79667.0,0.062707]
[1731252626427,0.01558606,79669.0,79658.0,0.36144]
[1731252626630,0.062716,79656.0,79649.0,0.423521]
[1731252626826,0.08466466,79656.0,79649.0,0.423521]
[1731252627027,0.062721,79650.0,79649.0,0.423521]
[1731252627238,0.3925,79661.0,79649.0,0.423521]
[1731252627239,0.062717,79655.0,79649.0,0.423521]
[1731252627439,0.062721,79650.0,79649.0,0.423521]
[1731252628233,0.08466466,79657.0,79649.0,0.423521]
[1731252628234,0.062717,79655.0,79649.0,0.423521]
[1731252628634,0.062718,79654.0,79649.0,0.423521]
[1731252629535,0.062719,79653.0,79649.0,0.423521]
[1731252630239,0.08466466,79651.0,79649.0,0.3608]
[1731252630442,0.062722,79648.0,79647.0,0.00188291]
[1731252630743,0.062722,79648.0,79633.0,8.959e-05]
[1731252630943,0.062733,79634.0,79633.0,8.959e-05]
[1731252633437,0.14739766,79634.0,79633.0,8.959e-05]
[1731252634147,0.14739766,79634.0,79614.0,0.062749]
[1731252634148,0.062747,79617.0,79614.0,0.062749]
[1731252634440,0.062734,79633.0,79611.0,0.07506645]
[1731252634441,0.06275,79613.0,79611.0,0.07506645]
[1731252635042,8.959e-05,79612.0,79611.0,0.07506645]
[1731252637737,0.01545756,79612.0,79611.0,0.07506645]
[1731252637944,8.959e-05,79612.0,79611.0,0.07506645]
[1731252638242,8.959e-05,79612.0,79611.0,0.43586645]
[1731252640236,8.959e-05,79612.0,79611.0,0.81270645]
[1731252640644,8.959e-05,79612.0,79611.0,0.8284312]
[1731252640943,8.959e-05,79612.0,79611.0,0.9521112]
[1731252641147,0.00188407,79636.0,79611.0,1.2521112]
[1731252641339,0.3608,79651.0,79635.0,0.423533]
[1731252641340,0.01583489,79646.0,79635.0,0.423533]
[1731252641541,0.001,79652.0,79649.0,0.062721]
[1731252641746,0.001,79652.0,79643.0,0.3608]
[1731252641940,0.001,79652.0,79651.0,0.3608]
[1731252643240,0.06272,79651.0,79643.0,0.423526]
[1731252643446,0.06272,79651.0,79645.0,0.062725]
[1731252644645,0.001,79652.0,79649.0,0.062721]
[1731252645247,0.001,79652.0,79650.0,0.062721]
[1731252646154,0.001,79652.0,79651.0,0.3608]
[1731252647146,0.001,79652.0,79650.0,0.062721]
[1731252647752,0.063719,79652.0,79650.0,0.062721]
[1731252648656,0.001,79652.0,79650.0,0.062721]
[1731252649151,0.001,79652.0,79650.0,0.423521]
[1731252649848,0.001,79652.0,79650.0,0.50818566]
[1731252650547,0.001,79652.0,79650.0,0.423521]
[1731252652049,0.001,79652.0,79651.0,0.08466466]
[1731252655851,0.001,79652.0,79651.0,0.14738466]
[1731252656258,0.001,79652.0,79651.0,0.16302969]
[1731252656456,0.001,79652.0,79651.0,0.06272]
[1731252659852,0.001,79652.0,79651.0,0.43936]
[1731252660058,0.001,79652.0,79651.0,0.52402466]
[1731252662762,0.38591057,79691.0,79676.0,0.44546466]
[1731252662959,0.06269,79689.0,79676.0,0.44546466]
[1731252663154,0.06269,79689.0,79687.0,0.062691]
[1731252663457,0.031,79690.0,79688.0,0.06269]
[1731252664658,0.06269,79689.0,79688.0,0.06269]
[1731252665252,0.031,79690.0,79683.0,0.3608]
[1731252665459,0.031,79690.0,79689.0,0.06269]
[1731252665758,0.031,79690.0,79689.0,0.06259]
[1731252668857,0.01755394,79695.0,79694.0,0.062686]
[1731252669660,0.08023894,79695.0,79694.0,0.062686]
[1731252669963,0.01755394,79695.0,79692.0,0.062688]
[1731252670267,0.01755394,79695.0,79688.0,0.062691]
[1731252670457,0.06269,79690.0,79688.0,0.062691]
[1731252670659,0.06269,79690.0,79689.0,0.06269]
[1731252670858,0.062694,79684.0,79683.0,0.3608]
[1731252671462,0.3608,79684.0,79678.0,0.0018825]
[1731252671663,0.08466466,79679.0,79668.0,0.3608]
[1731252671969,0.062704,79672.0,79668.0,0.423506]
[1731252673662,0.07799303,79672.0,79668.0,0.423506]
[1731252673863,0.062705,79671.0,79668.0,0.3608]
[1731252674064,0.062706,79670.0,79668.0,0.3608]
[1731252675470,0.3608,79676.0,79662.0,0.062711]
[1731252675666,0.062706,79670.0,79666.0,0.062708]
[1731252675969,0.062706,79670.0,79667.0,0.062707]
[1731252676574,0.062706,79669.0,79667.0,0.062707]
[1731252676960,0.062706,79669.0,79656.0,0.00064]
[1731252676961,0.3608,79668.0,79656.0,0.00064]
[1731252677166,0.14737966,79657.0,79656.0,0.00064]
[1731252677364,0.06272,79651.0,79650.0,0.001883]
[1731252678665,0.01547102,79651.0,79650.0,0.001883]
[1731252678871,0.062719,79652.0,79650.0,0.001883]
[1731252681275,0.3608,79651.0,79648.0,9.829e-05]
[1731252681580,0.14738666,79649.0,79648.0,9.829e-05]
[1731252681878,0.062722,79649.0,79648.0,9.829e-05]
[1731252683177,0.186042,79649.0,79648.0,9.829e-05]
[1731252685469,0.12304,79650.0,79648.0,9.829e-05]
[1731252685675,0.12304,79654.0,79649.0,0.3608]
[1731252685980,0.04571832,79656.0,79648.0,9.829e-05]
[1731252685981,0.062722,79649.0,79648.0,9.829e-05]
[1731252686777,0.14738666,79649.0,79648.0,9.829e-05]
[1731252687482,0.062722,79649.0,79648.0,9.829e-05]
[1731252690581,0.3608,79652.0,79648.0,9.829e-05]
[1731252690882,0.062722,79649.0,79648.0,9.829e-05]
[1731252692181,0.062722,79649.0,79648.0,0.06282029]
[1731252692483,0.00104001,79652.0,79651.0,0.06272]
[1731252692687,0.01541832,79656.0,79655.0,0.062717]
[1731252692891,0.12304,79665.0,79650.0,0.3608]
[1731252692892,0.062711,79662.0,79650.0,0.3608]
[1731252693272,0.12304,79665.0,79650.0,0.3608]
[1731252693681,0.062712,79662.0,79658.0,0.062714]
[1731252694681,0.062712,79662.0,79659.0,0.062713]
[1731252695192,0.062713,79660.0,79659.0,0.062713]
[1731252696391,0.50159804,79667.0,79650.0,0.3608]
[1731252696577,0.062715,79658.0,79654.0,0.062718]
[1731252696780,0.062715,79658.0,79657.0,0.062715]
[1731252697184,0.50159804,79667.0,79659.0,0.062713]
[1731252697185,0.062711,79663.0,79659.0,0.062713]
[1731252697383,0.062712,79662.0,79659.0,0.062713]
[1731252698791,0.062708,79666.0,79650.0,0.3608]
[1731252698999,0.50259804,79667.0,79650.0,0.3608]
[1731252699192,0.062709,79665.0,79664.0,0.06271]
[1731252699491,0.37955804,79667.0,79650.0,0.3608]
[1731252699790,0.37955804,79667.0,79666.0,0.062708]
[1731252699791,0.01775804,79667.0,79666.0,0.062708]
[1731252706992,0.08046504,79667.0,79666.0,0.062708]
[1731252707189,0.01775804,79667.0,79663.0,0.06271]
[1731252707398,0.06271,79664.0,79663.0,0.06271]
[1731252708399,0.062711,79663.0,79649.0,0.0634]
[1731252708590,0.062716,79656.0,79650.0,0.36268312]
[1731252709399,0.062711,79663.0,79657.0,0.062715]
[1731252709601,0.12304,79662.0,79650.0,0.36268312]
[1731252709799,0.12304,79662.0,79657.0,0.062715]
[1731252710891,0.062719,79653.0,79650.0,0.36268312]
[1731252711094,0.14738366,79653.0,79650.0,0.36268312]
[1731252711304,0.12227602,79653.0,79650.0,0.36268312]
[1731252712002,0.3608,79651.0,79650.0,0.00188312]
[1731252712191,0.062721,79650.0,79637.0,0.0319]
[1731252712397,0.08466466,79649.0,79637.0,0.0319]
[1731252712698,0.11466466,79649.0,79637.0,0.0319]
[1731252713094,0.49130466,79649.0,79633.0,0.3608]
[1731252713306,0.062731,79638.0,79633.0,0.3608]
[1731252714195,9.829e-05,79637.0,79633.0,0.3608]
[1731252714499,9.829e-05,79637.0,79635.0,0.062732]
[1731252719306,0.062733,79634.0,79633.0,0.38659521]
[1731252719498,0.062733,79634.0,79633.0,0.02511521]
[1731252723017,0.062734,79634.0,79613.0,0.06275]
[1731252723204,0.062747,79618.0,79613.0,0.05675001]
[1731252723604,0.3608,79629.0,79611.0,0.10736645]
[1731252723814,0.062742,79623.0,79620.0,0.062744]
[1731252724013,0.3608,79629.0,79611.0,0.10736645]
[1731252724014,0.423538,79629.0,79621.0,0.062743]
[1731252724316,0.3608,79629.0,79621.0,0.062743]
[1731252724516,0.3608,79629.0,79611.0,0.10736645]
[1731252724821,0.3608,79629.0,79616.0,0.062747]
[1731252724822,0.062742,79623.0,79616.0,0.062747]
[1731252725008,0.062742,79623.0,79617.0,0.062746]
[1731252725203,0.062742,79623.0,79619.0,0.062745]
[1731252726117,0.01526165,79623.0,79619.0,0.062745]
[1731252726409,0.062743,79622.0,79619.0,0.062745]
[1731252727914,0.062743,79622.0,79611.0,0.12264516]
[1731252727915,0.062739,79627.0,79617.0,0.3608]
[1731252728107,0.062741,79625.0,79617.0,0.3608]
[1731252728418,0.062741,79625.0,79621.0,0.062744]
[1731252729116,0.062741,79625.0,79624.0,0.062741]
[1731252729613,0.37612921,79629.0,79617.0,0.3608]
[1731252729815,0.37612921,79629.0,79628.0,0.14740266]
[1731252730113,0.1228,79633.0,79628.0,0.14740266]
[1731252730114,9.829e-05,79637.0,79634.0,0.062733]
[1731252730415,9.829e-05,79637.0,79636.0,0.062732]
[1731252730806,0.01575322,79637.0,79636.0,0.062732]
[1731252731005,0.062732,79636.0,79635.0,0.0325]
[1731252731714,0.062732,79636.0,79629.0,0.0307]
[1731252731715,0.062737,79630.0,79629.0,0.0307]
[1731252732012,0.062737,79630.0,79629.0,0.093437]
[1731252732913,0.062733,79635.0,79630.0,0.062736]
[1731252733215,0.062735,79633.0,79630.0,0.062736]
[1731252735019,0.062735,79633.0,79629.0,0.0307]
[1731252735020,0.08466466,79636.0,79629.0,0.0307]
[1731252735315,0.08466466,79636.0,79623.0,0.0301]
[1731252735316,0.062737,79630.0,79623.0,0.0301]
[1731252735516,0.062734,79633.0,79628.0,0.062737]
[1731252735717,0.062736,79632.0,79628.0,0.062737]
[1731252735916,0.08466466,79636.0,79628.0,0.062737]
[1731252736215,0.06274,79626.0,79625.0,0.3608]
[1731252736418,0.062736,79631.0,79626.0,0.062739]
[1731252736617,0.062736,79631.0,79625.0,0.3608]
[1731252736822,0.062736,79631.0,79627.0,0.062739]
[1731252737708,0.3608,79635.0,79630.0,0.062736]
[1731252737709,0.062733,79635.0,79630.0,0.062736]
[1731252737914,0.01575322,79637.0,79625.0,0.3608]
[1731252738216,9.829e-05,79637.0,79636.0,0.062732]
[1731252738414,9.829e-05,79637.0,79636.0,0.094132]
[1731252742211,9.829e-05,79637.0,79636.0,0.0314]
[1731252742424,0.062734,79633.0,79632.0,0.00064]
[1731252742725,0.06274,79625.0,79624.0,0.3932]
[1731252742923,0.06274,79625.0,79624.0,0.3608]
[1731252743120,0.44546466,79625.0,79615.0,0.0311]
[1731252743323,0.56826466,79625.0,79615.0,0.0311]
[1731252743518,0.062748,79616.0,79614.0,0.3608]
[1731252743721,0.062748,79616.0,79611.0,0.07506645]
[1731252743722,0.062751,79612.0,79611.0,0.07506645]
[1731252745924,0.01518703,79616.0,79611.0,0.07506645]
[1731252746124,0.062748,79616.0,79612.0,0.062751]
[1731252747126,0.062751,79612.0,79611.0,0.07506645]
[1731252750416,0.44584584,79612.0,79611.0,0.07506645]
[1731252750618,0.06900584,79612.0,79611.0,0.07506645]
[1731252750833,0.09974862,79612.0,79611.0,0.07506645]
[1731252751032,0.47658911,79612.0,79591.0,0.062767]
[1731252751228,0.062762,79598.0,79591.0,0.062767]
[1731252752023,0.062762,79598.0,79592.0,0.062766]
[1731252753531,0.0783447,79598.0,79592.0,0.062766]
[1731252753735,0.0783447,79598.0,79589.0,0.0309]
[1731252753736,0.0155827,79598.0,79585.0,0.032]
[1731252753939,0.062771,79586.0,79585.0,0.032]
[1731252754734,0.08466466,79593.0,79585.0,0.032]
[1731252754921,0.12252,79592.0,79585.0,0.094772]
[1731252755233,0.062771,79587.0,79585.0,0.094772]
[1731252755827,0.12252,79592.0,79585.0,0.032]
[1731252756030,0.062771,79586.0,79585.0,0.032]
[1731252757332,0.12252,79592.0,79585.0,0.032]
[1731252757333,0.062768,79590.0,79585.0,0.032]
[1731252757630,0.06277,79588.0,79585.0,0.032]
[1731252758429,0.06277,79588.0,79585.0,0.094772]
[1731252760636,0.062767,79592.0,79585.0,0.032]
[1731252760830,0.185327,79591.0,79588.0,0.062769]
[1731252761031,0.062768,79590.0,79588.0,0.062769]
[1731252761726,0.0156717,79592.0,79591.0,0.062767]
[1731252761927,0.12256,79592.0,79591.0,0.062767]
[1731252762732,0.185326,79592.0,79591.0,0.062767]
[1731252763442,0.01519845,79594.0,79593.0,0.062766]
[1731252763742,0.0313,79607.0,79593.0,0.062766]
[1731252763743,0.062755,79607.0,79593.0,0.062766]
[1731252763936,0.02522023,79612.0,79602.0,0.3608]
[1731252764233,0.02522023,79612.0,79603.0,0.0944]
[1731252764433,0.02522023,79612.0,79606.0,0.062755]
[1731252764434,0.062752,79610.0,79606.0,0.062755]
[1731252764834,0.04078797,79612.0,79606.0,0.062755]
[1731252765046,0.08466466,79607.0,79603.0,0.0944]
[1731252765235,0.08466466,79607.0,79599.0,0.06276]
[1731252765438,0.062759,79603.0,79599.0,0.06276]
[1731252765737,0.08466466,79601.0,79599.0,0.06276]
[1731252765938,0.08466466,79601.0,79592.0,0.0929]
[1731252766239,0.08466466,79601.0,79596.0,0.062763]
[1731252766435,0.08466466,79601.0,79592.0,0.0929]
[1731252767735,0.08466466,79601.0,79599.0,0.062761]
[1731252767934,0.062759,79602.0,79599.0,0.062761]
[1731252768338,0.062756,79606.0,79592.0,0.0929]
[1731252768543,0.062756,79606.0,79601.0,0.062759]
[1731252769244,0.062756,79605.0,79601.0,0.062759]
[1731252769745,0.062757,79604.0,79601.0,0.062759]
[1731252770642,0.062757,79604.0,79592.0,0.0929]
[1731252770844,0.062757,79604.0,79599.0,0.3608]
[1731252771235,0.062757,79604.0,79601.0,0.062759]
[1731252771442,0.062757,79604.0,79602.0,0.062759]
[1731252771946,0.062757,79604.0,79603.0,0.062758]
[1731252772543,0.08466466,79607.0,79599.0,0.3608]
[1731252772738,0.04078797,79612.0,79599.0,0.3608]
[1731252772943,0.01566085,79612.0,79611.0,0.062751]
[1731252775042,0.01566085,79612.0,79611.0,0.262751]
[1731252775654,0.01566085,79612.0,79611.0,0.239751]
[1731252778051,0.01566085,79612.0,79611.0,0.039751]
[1731252780255,0.01566085,79612.0,79611.0,0.249751]
[1731252782268,0.07841185,79612.0,79611.0,0.249751]
[1731252782560,0.01566085,79612.0,79611.0,0.249751]
[1731252783251,0.01566085,79612.0,79611.0,0.21]
[1731252783456,0.01566085,79612.0,79611.0,0.272751]
[1731252783656,9.311e-05,79612.0,79611.0,0.35741566]
[1731252783867,0.062731,79637.0,79611.0,0.649591]
[1731252784055,0.02512712,79638.0,79625.0,0.08466466]
[1731252784252,0.12224,79637.0,79636.0,0.062732]
[1731252784465,0.01537457,79639.0,79638.0,0.06273]
[1731252784666,0.08784712,79651.0,79638.0,0.68546466]
[1731252784667,0.12224,79648.0,79638.0,0.68546466]
[1731252784871,9.598e-05,79647.0,79644.0,0.062725]
[1731252785068,9.598e-05,79647.0,79645.0,0.062725]
[1731252785363,9.598e-05,79647.0,79645.0,0.262725]
[1731252785561,9.598e-05,79647.0,79645.0,0.2]
[1731252785562,0.06281898,79647.0,79645.0,0.2]
[1731252786862,0.37668,79646.0,79645.0,0.2]
[1731252787062,0.40788,79646.0,79645.0,0.2]
[1731252789253,0.40788,79646.0,79629.0,0.31]
[1731252789458,0.062737,79630.0,79629.0,0.08]
[1731252789764,0.062737,79630.0,79629.0,0.0126797]
[1731252790662,0.12224,79631.0,79623.0,0.062742]
[1731252790870,0.06274,79626.0,79623.0,0.062742]
[1731252792169,0.08466466,79624.0,79621.0,0.0304]
[1731252792671,0.062742,79623.0,79621.0,0.0304]
[1731252793767,0.12224,79628.0,79627.0,0.062739]
[1731252794165,0.12224,79628.0,79627.0,0.423539]
[1731252794879,0.12224,79628.0,79627.0,0.062739]
[1731252795165,0.12224,79628.0,79610.0,0.42548]
[1731252795368,0.062751,79611.0,79610.0,0.3548]
[1731252795569,0.08466466,79615.0,79604.0,0.0311]
[1731252795570,0.062752,79610.0,79604.0,0.0311]
[1731252796562,0.062752,79610.0,79605.0,0.062756]
[1731252796965,0.062752,79610.0,79607.0,0.062754]
[1731252797666,0.062752,79610.0,79604.0,0.0311]
[1731252797867,0.01560662,79610.0,79608.0,0.062754]
[1731252798171,0.062748,79616.0,79610.0,0.062752]
[1731252798172,0.12224,79612.0,79610.0,0.062752]
[1731252798667,0.01528866,79616.0,79614.0,0.062749]
[1731252798858,0.01528866,79616.0,79604.0,0.0311]
[1731252798859,0.184986,79618.0,79606.0,0.3608]
[1731252799064,0.184986,79618.0,79615.0,0.062748]
[1731252799261,0.062748,79616.0,79609.0,0.06463709]
[1731252799464,0.062752,79610.0,79609.0,0.00188409]
[1731252801357,0.062748,79615.0,79609.0,0.06463709]
[1731252801564,0.062749,79614.0,79609.0,0.06463709]
[1731252802072,0.06275,79613.0,79609.0,0.06463709]
[1731252803669,0.06275,79613.0,79610.0,0.062752]
[1731252804266,0.062747,79617.0,79610.0,0.062752]
[1731252804478,0.062752,79610.0,79609.0,0.00188409]
[1731252804671,0.062752,79610.0,79609.0,0.00178409]
[1731252804989,0.03762953,79610.0,79609.0,0.00178409]
[1731252806972,0.03762953,79610.0,79609.0,0.06453709]
[1731252809079,0.03758953,79610.0,79609.0,0.06453709]
[1731252809275,0.05300415,79610.0,79609.0,0.06453709]
[1731252809582,0.062749,79615.0,79609.0,0.00178409]
[1731252809783,0.08466466,79616.0,79609.0,0.00178409]
[1731252809986,0.062749,79614.0,79612.0,0.06275]
[1731252810480,0.08466466,79616.0,79612.0,0.06275]
[1731252810672,0.06275,79613.0,79612.0,0.06275]
[1731252811178,0.3608,79620.0,79612.0,0.06275]
[1731252811179,0.00109598,79627.0,79612.0,1.09844]
[1731252811387,0.00109598,79627.0,79626.0,0.06274]
[1731252811388,0.01588289,79627.0,79626.0,0.06274]
[1731252811676,0.01588289,79627.0,79626.0,0.42354]
[1731252811677,9.598e-05,79627.0,79626.0,0.42354]
[1731252812184,0.12196,79643.0,79637.0,0.062731]
[1731252812372,0.00613146,79651.0,79637.0,0.062731]
[1731252812373,0.07845607,79645.0,79637.0,0.062731]
[1731252812578,0.062725,79645.0,79637.0,0.062731]
[1731252812775,0.062725,79645.0,79639.0,0.062729]
[1731252813288,0.01550614,79645.0,79636.0,0.08466466]
[1731252813582,0.3618,79652.0,79647.0,0.062723]
[1731252813583,0.001,79652.0,79647.0,0.062723]
[1731252813791,0.01683035,79652.0,79648.0,0.0641]
[1731252814084,0.001,79652.0,79648.0,0.0641]
[1731252814381,0.001,79652.0,79650.0,0.06272]
[1731252814382,0.01676054,79652.0,79650.0,0.06272]
[1731252814585,0.001,79652.0,79650.0,0.06272]
[1731252815382,0.001,79652.0,79651.0,0.3608]
[1731252815583,0.062722,79649.0,79648.0,0.0316]
[1731252816183,0.06372,79652.0,79648.0,0.0316]
[1731252816384,0.001,79652.0,79648.0,0.0316]
[1731252816685,0.062721,79650.0,79648.0,0.0316]
[1731252817185,0.062721,79650.0,79648.0,0.094322]
[1731252817586,0.062721,79650.0,79648.0,0.0316]
[1731252818178,0.062721,79650.0,79648.0,0.094322]
[1731252819087,0.062721,79650.0,79648.0,0.0316]
[1731252819588,0.13819794,79652.0,79644.0,0.0325]
[1731252819980,0.13819794,79652.0,79641.0,0.062728]
[1731252820180,0.062729,79640.0,79638.0,0.0302]
[1731252820382,0.062729,79640.0,79634.0,0.00188354]
[1731252820383,0.062732,79636.0,79634.0,0.00188354]
[1731252821290,0.062732,79636.0,79628.0,0.08466466]
[1731252821782,0.062732,79636.0,79626.0,0.031]
[1731252821988,0.062732,79636.0,79626.0,0.11566466]
[1731252822383,0.062732,79636.0,79631.0,0.062736]
[1731252822585,0.01542915,79636.0,79631.0,0.062736]
[1731252822785,0.062733,79635.0,79631.0,0.062736]
[1731252823384,0.062734,79634.0,79631.0,0.062736]
[1731252824197,0.3608,79639.0,79638.0,0.06273]
[1731252824483,0.01529578,79640.0,79637.0,0.08466466]
[1731252824686,0.01529578,79640.0,79627.0,0.062739]
[1731252824687,0.36268384,79654.0,79639.0,0.08466466]
[1731252824885,0.3608,79647.0,79640.0,0.033]
[1731252825087,0.3608,79647.0,79640.0,0.095728]
[1731252825387,0.062727,79642.0,79640.0,0.033]
[1731252825584,0.062732,79636.0,79633.0,0.062734]
[1731252826283,0.3608,79639.0,79634.0,0.062733]
[1731252826483,0.3608,79639.0,79629.0,0.3608]
[1731252826685,0.3608,79639.0,79636.0,0.062732]
[1731252826888,0.062729,79640.0,79638.0,0.06273]
[1731252827584,0.07790537,79640.0,79638.0,0.06273]
[1731252827890,0.01517637,79640.0,79639.0,0.062729]
[1731252828082,0.12192,79642.0,79639.0,0.062729]
[1731252829095,0.13717372,79642.0,79641.0,0.062728]
[1731252829785,0.062733,79635.0,79631.0,0.062736]
[1731252829984,0.062734,79633.0,79631.0,0.062736]
[1731252830192,0.3608,79638.0,79627.0,0.0309]
[1731252830388,0.062739,79627.0,79626.0,0.03164]
[1731252830581,0.062744,79620.0,79617.0,0.062747]
[1731252830787,0.12192,79627.0,79614.0,0.0326]
[1731252830992,0.12192,79627.0,79619.0,0.062745]
[1731252831193,0.062744,79621.0,79619.0,0.062745]
[1731252832587,0.06274,79626.0,79620.0,0.062744]
[1731252832788,0.062741,79625.0,79619.0,0.062745]
[1731252832989,0.062742,79623.0,79619.0,0.062745]
[1731252834198,0.13780483,79627.0,79614.0,0.095349]
[1731252834395,0.14741266,79615.0,79610.0,0.0302]
[1731252834589,0.423551,79611.0,79610.0,0.0302]
[1731252834990,0.062751,79611.0,79610.0,0.0302]
[1731252835989,0.062752,79610.0,79609.0,0.00178409]
[1731252838101,0.01513319,79612.0,79609.0,0.00178409]
[1731252838300,0.02511756,79620.0,79614.0,0.062749]
[1731252838492,0.1216,79619.0,79614.0,0.062749]
[1731252838694,0.02511756,79620.0,79614.0,0.062749]
[1731252839002,0.02511756,79620.0,79609.0,0.06453709]
[1731252839306,0.02511756,79620.0,79609.0,0.00178409]
[1731252839495,0.1216,79619.0,79609.0,0.00178409]
[1731252839695,0.062746,79618.0,79613.0,0.06275]
[1731252839896,0.1216,79619.0,79609.0,0.06453709]
[1731252840098,0.02511756,79620.0,79612.0,0.3608]
[1731252840296,0.062746,79619.0,79616.0,0.062747]
[1731252840602,0.184346,79618.0,79617.0,0.0304]
[1731252842598,0.184346,79618.0,79617.0,0.093147]
[1731252843003,0.062746,79618.0,79617.0,0.093147]
[1731252843503,0.062746,79618.0,79617.0,0.0304]
[1731252844102,0.07844143,79618.0,79617.0,0.0304]
[1731252844301,0.01569543,79618.0,79617.0,0.093147]
[1731252844503,0.1216,79619.0,79617.0,0.0304]
[1731252844707,0.02511756,79620.0,79618.0,0.062746]
[1731252844910,0.20946156,79620.0,79618.0,0.062746]
[1731252845099,0.20946156,79620.0,79617.0,0.0304]
[1731252845100,0.062746,79618.0,79617.0,0.0304]
[1731252847309,0.062746,79618.0,79617.0,0.093147]
[1731252848811,0.062746,79618.0,79617.0,0.0304]
[1731252849213,0.06275,79613.0,79612.0,0.06275]
[1731252849711,0.062746,79618.0,79614.0,0.062749]
[1731252850110,0.14671756,79620.0,79614.0,0.062749]
[1731252850307,0.14671756,79620.0,79611.0,0.0313]
[1731252850611,0.062747,79617.0,79611.0,0.0313]
[1731252850810,0.062747,79617.0,79616.0,0.062748]
[1731252851510,0.14671756,79620.0,79611.0,0.0313]
[1731252851810,0.14671756,79620.0,79616.0,0.062747]
[1731252852006,0.14671756,79620.0,79617.0,0.062746]
[1731252852314,0.062746,79618.0,79617.0,0.062746]
[1731252853010,0.0154863,79621.0,79617.0,0.08466466]
[1731252853207,0.00188487,79627.0,79626.0,0.06274]
[1731252853717,0.00188487,79627.0,79620.0,0.062744]
[1731252854104,0.00188487,79627.0,79619.0,0.0313]
[1731252854410,0.08005933,79627.0,79626.0,0.06274]
[1731252854713,0.062741,79624.0,79623.0,0.06274]
[1731252856718,0.00188487,79627.0,79619.0,0.0313]
[1731252856918,0.062744,79622.0,79621.0,0.062743]
[1731252860120,0.06462387,79627.0,79619.0,0.0313]
[1731252860517,0.00188487,79627.0,79626.0,0.14740466]
[1731252863423,0.00188487,79627.0,79626.0,0.06274]
[1731252863615,0.062725,79645.0,79641.0,0.062728]
[1731252863616,0.4824,79643.0,79641.0,0.062728]
[1731252864017,0.4824,79643.0,79642.0,0.062727]
[1731252864018,0.3608,79643.0,79642.0,0.062727]
[1731252864219,0.37607979,79643.0,79642.0,0.062727]
[1731252864425,0.01527979,79643.0,79642.0,0.062727]
[1731252864619,0.18432,79651.0,79641.0,0.08466466]
[1731252864822,0.06272,79651.0,79649.0,0.062722]
[1731252865121,0.14671379,79653.0,79649.0,0.14738666]
[1731252865318,0.1216,79653.0,79649.0,0.08466466]
[1731252865514,0.1368891,79653.0,79652.0,0.062719]
[1731252866027,0.1368891,79653.0,79652.0,0.039719]
[1731252867437,0.1996071,79653.0,79652.0,0.039719]
[1731252867630,0.062722,79649.0,79647.0,0.062723]
[1731252868020,0.062722,79649.0,79648.0,0.062722]
[1731252868625,0.1368891,79653.0,79649.0,0.062721]
[1731252868924,0.062721,79650.0,79649.0,0.062721]
[1731252869128,0.062733,79634.0,79633.0,0.00188379]
[1731252869319,0.3608,79651.0,79634.0,0.062733]
[1731252869320,0.12124,79637.0,79634.0,0.062733]
[1731252869622,0.183972,79637.0,79634.0,0.062733]